Workbook

Sheet 3333
A1: https://miau.my-x.hu/miau/solver4u/teszt.png
B2: =10^3 -> 1000 | C2: =10^2 -> 100 | D2: =10^1 -> 10 | E2: =10^0 -> 1 | G2: =C2 -> 100 | H2: =D2 -> 10 | I2: =E2 -> 1 | K2: =H2 -> 10 | L2: =I2 -> 1 | N2: =L2 -> 1
B3: 10^3 | C3: 10^2 | D3: 10^1 | E3: 10^0 | G3: =C3 -> 10^2 | H3: =D3 -> 10^1 | I3: 10^0 | K3: =H3 -> 10^1 | L3: =I3 -> 10^0 | N3: =L3 -> 10^0
B4: ez | C4: sz | D4: ti | E4: eg | G4: =C4 -> sz | H4: =D4 -> ti | I4: eg | K4: =H4 -> ti | L4: =I4 -> eg | N4: =L4 -> eg
B5: 4jegyű | G5: 3jegyű | K5: 2jegyű | N5: 1jegyű | R5: =B5 -> 4jegyű | T5: =G5 -> 3jegyű | V5: =K5 -> 2jegyű | X5: =N5 -> 1jegyű
A6: 1. értelmezés | B6: x4 | C6: x3 | D6: x2 | E6: x1 | F6: - | G6: =B6 -> x4 | H6: =C6 -> x3 | I6: x2 | J6: - | K6: =G6 -> x4 | L6: =H6 -> x3 | M6: - | N6: =B6 -> x4 | O6: = | P6: 3333 | R6: =B2&"*"&B6&"+"&C2&"*"&C6&"+"&D2&"*"&D6&"+"&E2&"*"&E6 -> 1000*x4+100*x3+10*x2+1*x1 | S6: =F6 -> - | T6: =G2&"*"&G6&"+"&H2&"*"&H6&"+"&I2&"*"&I6 -> 100*x4+10*x3+1*x2 | U6: =J6 -> - | V6: =K2&"*"&K6&"+"&L2&"*"&L6 -> 10*x4+1*x3 | W6: =M6 -> - | X6: =N2&"*"&N6 -> 1*x4 | Y6: =O6 -> = | Z6: =P6 -> 3333
B7: def | C7: def | D7: def | E7: def | R7: magyarból matematikává átírva
B8: 0...9 | C8: 0…9 | D8: 0…9 | E8: 0…9
A10: 2. értelmezés: fordított írásképű nyelvek hatása?

Sheet 30mp
C3: 4 | D3: 3 | E3: 2 | F3: 1 | G3: k | H3: e | I3: HIBA
B4: magyarból Excel-be | C4: 99999 | D4: =INT(C4/10) -> 9999 | E4: =INT(D4/10) -> 999 | F4: 99 | G4: =C4-D4-E4-F4 -> 88902 | H4: 44444 | I4: =H4-G4 -> -44458
B5: másolás + adaptáció | C5: =C4+I4 -> 55541 | D5: =INT(C5/10) -> 5554 | E5: 555 | F5: 55 | G5: =C5-D5-E5-F5 -> 49377 | H5: =H4 -> 44444 | I5: =H5-G5 -> -4933
B6: másolás + adaptáció | C6: =C5+I5 -> 50608 | D6: =INT(C6/10) -> 5060 | E6: 506 | F6: 50 | G6: 44992 | H6: =H5 -> 44444 | I6: -548
B7: másolás + adaptáció | C7: 50060 | D7: =INT(C7/10) -> 5006 | E7: 500 | F7: 50 | G7: 44504 | H7: 44444 | I7: -60
B8: másolás + adaptáció | C8: 50000 | D8: =INT(C8/10) -> 5000 | E8: 500 | F8: 50 | G8: 44450 | H8: 44444 | I8: -6
B9: másolás + adaptáció | C9: 49994 | D9: =INT(C9/10) -> 4999 | E9: 499 | F9: 49 | G9: 44447 | H9: 44444 | I9: -3
B10: másolás + adaptáció | C10: 49991 | D10: =INT(C10/10) -> 4999 | E10: 499 | F10: 49 | G10: 44444 | H10: 44444 | I10: 0

Sheet 30mp (2)
C3: 4 | D3: 3 | E3: 2 | F3: 1 | G3: k | H3: e | I3: HIBA
B4: magyarból Excel-be | C4: =RANDBETWEEN(1000,9999) -> 3535 | D4: =INT(C4/10) -> 353 | E4: =INT(D4/10) -> 35 | F4: 3 | G4: =C4-D4-E4-F4 -> 3144 | H4: 3333 | I4: =H4-G4 -> 189
B5: másolás + adaptáció | C5: =C4+I4 -> 3724 | D5: =INT(C5/10) -> 372 | E5: 37 | F5: 3 | G5: =C5-D5-E5-F5 -> 3312 | H5: =H4 -> 3333 | I5: =H5-G5 -> 21
B6: másolás + adaptáció | C6: =C5+I5 -> 3745 | D6: 374 | E6: 37 | F6: 3 | G6: 3331 | H6: =H5 -> 3333 | I6: 2
B7: másolás + adaptáció | C7: 3747 | D7: 374 | E7: 37 | F7: 3 | G7: 3333 | H7: 3333 | I7: 0
B8: másolás + adaptáció | C8: 3747 | D8: 374 | E8: 37 | F8: 3 | G8: 3333 | H8: 3333 | I8: 0
B9: másolás + adaptáció | C9: 3747 | D9: 374 | E9: 37 | F9: 3 | G9: 3333 | H9: 3333 | I9: 0
B10: másolás + adaptáció | C10: 3747 | D10: 374 | E10: 37 | F10: 3 | G10: 3333 | H10: 3333 | I10: 0

Sheet solver
A1: http://miau.my-x.hu/miau/130/foldgaz.ppt
C5: 4 | D5: 3 | E5: 2 | F5: 1 | G5: k | H5: e | I5: HIBA
B6: magyarból Excel-be | C6: 4567 | D6: =INT(C6/10) -> 456 | E6: =INT(D6/10) -> 45 | F6: 4 | G6: =C6-D6-E6-F6 -> 4062 | H6: 3333 | I6: =ABS(H6-G6) -> 729 | J6: <--Aladdin
B8: GENERÁCIÓ | C8: SOK EGYED EGYIDEJŰLEG (EGY EGYED CSAK EGYSZER FORDUL ELŐ)
B9: DEFEKT / MUTÁCIÓ
B10: DNS/GENOM/GENETIKAI KÓD/…
B11: SEJT
B12: SEJTCIKLUS
B13: KERESZTÉS
B14: LETÁLIS
B15: FENOTÍPUS
B16: GENOTÍPUS
B17: KLÓNOZÁS | C17: ***
B18: EGYED | C18: =C6 -> 4567
B19: SZELEKCIÓ | C19: %
C20: 4 | D20: 5 | E20: 6 | F20: 7 | G20: HIBA
C21: 1010 | D21: 1111 | E21: 0000 | F21: 0010 | G21: 543
C22: =D21 -> 1111 | D22: =C21 -> 1010 | E22: =F21 -> 0010 | F22: =E21 -> 0000 | G22: 321
B23: MUTÁCIÓ | C23: 1110 | D23: =D22 -> 1010 | E23: 0000 | F23: =F22 -> 0000 | G23: 999
B24: KERESZTEZÉS | C24: =C22 -> 1111 | D24: =D23 -> 1010 | E24: =E23 -> 0000 | F24: =F22 -> 0000 | G24: 299
C25: …. | D25: …. | E25: …. | F25: ….

Sheet TREND
B1: BÚZA KG/HA
A2: 2010 | B2: 4658 | Q2: KG/HA | U2: ÉV
A3: 2011 | B3: 4918 | Q3: Y | R3: = | S3: A | T3: * | U3: X | V3: + | W3: B
A4: 2012 | B4: 4094 | S4: 79.358 | W4: -155547
A5: 2013 | B5: 2099 | S5: 10011101 | W5: 11011101111
A6: 2014 | B6: 5116
A7: 2015 | B7: 4810
A8: 2016 | B8: 3969
A9: 2017 | B9: 4529
A10: 2018 | B10: 2655
A11: 2019 | B11: 5269
A12: 2020 | B12: 4593
A13: 2021 | B13: 5954
A14: 2022 | B14: 4435
A15: 2023 | B15: 5609

Sheet brute force
C5: 4 | D5: 3 | E5: 2 | F5: 1 | G5: k | H5: e | I5: HIBA
B6: magyarból Excel-be | C6: =RANDBETWEEN(1000,9999) -> 1845 | D6: =INT(C6/10) -> 184 | E6: =INT(D6/10) -> 18 | F6: 1 | G6: =C6-D6-E6-F6 -> 1642 | H6: 3333 | I6: =ABS(H6-G6) -> 1691
C8: primer | D8: szarmaztatott | E8: szarmaztatott | F8: szarmaztatott | G8: c-d-e-f | H8: konstans | I8: h-g
B9: id | C9: 4 | D9: 3 | E9: 2 | F9: 1 | G9: k | H9: e | I9: HIBA
B10: kísérlet1 | C10: 1000 | D10: =INT(C10/10) -> 100 | E10: =INT(D10/10) -> 10 | F10: =INT(E10/10) -> 1 | G10: =C10-D10-E10-F10 -> 889 | H10: 3333 | I10: =ABS(H10-G10) -> 2444 | M10: 0
B11: kísérlet2 | C11: =C10+1 -> 1001 | D11: =INT(C11/10) -> 100 | E11: =INT(D11/10) -> 10 | F11: =INT(E11/10) -> 1 | G11: =C11-D11-E11-F11 -> 890 | H11: 3333 | I11: =ABS(H11-G11) -> 2443 | M11: 1
B12: kísérlet3 | C12: =C11+1 -> 1002 | D12: 100 | E12: 10 | F12: 1 | G12: 891 | H12: 3333 | I12: 2442 | M12: 1 | N12: =M11+M10 -> 1
B13: kísérlet4 | C13: 1003 | D13: 100 | E13: 10 | F13: 1 | G13: 892 | H13: 3333 | I13: 2441 | M13: 2 | N13: =M12+M11 -> 2
B14: kísérlet5 | C14: 1004 | D14: 100 | E14: 10 | F14: 1 | G14: 893 | H14: 3333 | I14: 2440 | M14: 3 | N14: 3
B15: kísérlet6 | C15: 1005 | D15: 100 | E15: 10 | F15: 1 | G15: 894 | H15: 3333 | I15: 2439 | M15: 5 | N15: 5
B16: kísérlet7 | C16: 1006 | D16: 100 | E16: 10 | F16: 1 | G16: 895 | H16: 3333 | I16: 2438 | M16: 8 | N16: 8
B17: kísérlet8 | C17: 1007 | D17: 100 | E17: 10 | F17: 1 | G17: 896 | H17: 3333 | I17: 2437 | M17: 13 | N17: 13
B18: kísérlet9 | C18: 1008 | D18: 100 | E18: 10 | F18: 1 | G18: 897 | H18: 3333 | I18: 2436 | M18: 21 | N18: 21
B19: kísérlet10 | C19: 1009 | D19: 100 | E19: 10 | F19: 1 | G19: 898 | H19: 3333 | I19: 2435 | N19: 34
B20: kísérlet11 | C20: 1010 | D20: 101 | E20: 10 | F20: 1 | G20: 898 | H20: 3333 | I20: 2435
B21: kísérlet12 | C21: 1011 | D21: 101 | E21: 10 | F21: 1 | G21: 899 | H21: 3333 | I21: 2434
B22: kísérlet13 | C22: 1012 | D22: 101 | E22: 10 | F22: 1 | G22: 900 | H22: 3333 | I22: 2433
B23: kísérlet14 | C23: 1013 | D23: 101 | E23: 10 | F23: 1 | G23: 901 | H23: 3333 | I23: 2432
B24: kísérlet15 | C24: 1014 | D24: 101 | E24: 10 | F24: 1 | G24: 902 | H24: 3333 | I24: 2431
B25: kísérlet16 | C25: 1015 | D25: 101 | E25: 10 | F25: 1 | G25: 903 | H25: 3333 | I25: 2430
B26: kísérlet17 | C26: 1016 | D26: 101 | E26: 10 | F26: 1 | G26: 904 | H26: 3333 | I26: 2429
B27: kísérlet18 | C27: 1017 | D27: 101 | E27: 10 | F27: 1 | G27: 905 | H27: 3333 | I27: 2428
B28: kísérlet19 | C28: 1018 | D28: 101 | E28: 10 | F28: 1 | G28: 906 | H28: 3333 | I28: 2427
B29: kísérlet20 | C29: 1019 | D29: 101 | E29: 10 | F29: 1 | G29: 907 | H29: 3333 | I29: 2426
B30: kísérlet21 | C30: 1020 | D30: 102 | E30: 10 | F30: 1 | G30: 907 | H30: 3333 | I30: 2426
B31: kísérlet22 | C31: 1021 | D31: 102 | E31: 10 | F31: 1 | G31: 908 | H31: 3333 | I31: 2425
B32: kísérlet23 | C32: 1022 | D32: 102 | E32: 10 | F32: 1 | G32: 909 | H32: 3333 | I32: 2424
B33: kísérlet24 | C33: 1023 | D33: 102 | E33: 10 | F33: 1 | G33: 910 | H33: 3333 | I33: 2423
B34: kísérlet25 | C34: 1024 | D34: 102 | E34: 10 | F34: 1 | G34: 911 | H34: 3333 | I34: 2422
B35: kísérlet26 | C35: 1025 | D35: 102 | E35: 10 | F35: 1 | G35: 912 | H35: 3333 | I35: 2421
B36: kísérlet27 | C36: 1026 | D36: 102 | E36: 10 | F36: 1 | G36: 913 | H36: 3333 | I36: 2420
B37: kísérlet28 | C37: 1027 | D37: 102 | E37: 10 | F37: 1 | G37: 914 | H37: 3333 | I37: 2419
B38: kísérlet29 | C38: 1028 | D38: 102 | E38: 10 | F38: 1 | G38: 915 | H38: 3333 | I38: 2418
B39: kísérlet30 | C39: 1029 | D39: 102 | E39: 10 | F39: 1 | G39: 916 | H39: 3333 | I39: 2417
B40: kísérlet31 | C40: 1030 | D40: 103 | E40: 10 | F40: 1 | G40: 916 | H40: 3333 | I40: 2417
B41: kísérlet32 | C41: 1031 | D41: 103 | E41: 10 | F41: 1 | G41: 917 | H41: 3333 | I41: 2416
B42: kísérlet33 | C42: 1032 | D42: 103 | E42: 10 | F42: 1 | G42: 918 | H42: 3333 | I42: 2415
B43: kísérlet34 | C43: 1033 | D43: 103 | E43: 10 | F43: 1 | G43: 919 | H43: 3333 | I43: 2414
B44: kísérlet35 | C44: 1034 | D44: 103 | E44: 10 | F44: 1 | G44: 920 | H44: 3333 | I44: 2413
B45: kísérlet36 | C45: 1035 | D45: 103 | E45: 10 | F45: 1 | G45: 921 | H45: 3333 | I45: 2412
B46: kísérlet37 | C46: 1036 | D46: 103 | E46: 10 | F46: 1 | G46: 922 | H46: 3333 | I46: 2411
B47: kísérlet38 | C47: 1037 | D47: 103 | E47: 10 | F47: 1 | G47: 923 | H47: 3333 | I47: 2410
B48: kísérlet39 | C48: 1038 | D48: 103 | E48: 10 | F48: 1 | G48: 924 | H48: 3333 | I48: 2409
B49: kísérlet40 | C49: 1039 | D49: 103 | E49: 10 | F49: 1 | G49: 925 | H49: 3333 | I49: 2408
B50: kísérlet41 | C50: 1040 | D50: 104 | E50: 10 | F50: 1 | G50: 925 | H50: 3333 | I50: 2408
B51: kísérlet42 | C51: 1041 | D51: 104 | E51: 10 | F51: 1 | G51: 926 | H51: 3333 | I51: 2407
B52: kísérlet43 | C52: 1042 | D52: 104 | E52: 10 | F52: 1 | G52: 927 | H52: 3333 | I52: 2406
B53: kísérlet44 | C53: 1043 | D53: 104 | E53: 10 | F53: 1 | G53: 928 | H53: 3333 | I53: 2405
B54: kísérlet45 | C54: 1044 | D54: 104 | E54: 10 | F54: 1 | G54: 929 | H54: 3333 | I54: 2404
B55: kísérlet46 | C55: 1045 | D55: 104 | E55: 10 | F55: 1 | G55: 930 | H55: 3333 | I55: 2403
B56: kísérlet47 | C56: 1046 | D56: 104 | E56: 10 | F56: 1 | G56: 931 | H56: 3333 | I56: 2402
B57: kísérlet48 | C57: 1047 | D57: 104 | E57: 10 | F57: 1 | G57: 932 | H57: 3333 | I57: 2401
B58: kísérlet49 | C58: 1048 | D58: 104 | E58: 10 | F58: 1 | G58: 933 | H58: 3333 | I58: 2400
B59: kísérlet50 | C59: 1049 | D59: 104 | E59: 10 | F59: 1 | G59: 934 | H59: 3333 | I59: 2399
B60: kísérlet51 | C60: 1050 | D60: 105 | E60: 10 | F60: 1 | G60: 934 | H60: 3333 | I60: 2399
B61: kísérlet52 | C61: 1051 | D61: 105 | E61: 10 | F61: 1 | G61: 935 | H61: 3333 | I61: 2398
B62: kísérlet53 | C62: 1052 | D62: 105 | E62: 10 | F62: 1 | G62: 936 | H62: 3333 | I62: 2397
B63: kísérlet54 | C63: 1053 | D63: 105 | E63: 10 | F63: 1 | G63: 937 | H63: 3333 | I63: 2396
B64: kísérlet55 | C64: 1054 | D64: 105 | E64: 10 | F64: 1 | G64: 938 | H64: 3333 | I64: 2395
B65: kísérlet56 | C65: 1055 | D65: 105 | E65: 10 | F65: 1 | G65: 939 | H65: 3333 | I65: 2394
B66: kísérlet57 | C66: 1056 | D66: 105 | E66: 10 | F66: 1 | G66: 940 | H66: 3333 | I66: 2393
B67: kísérlet58 | C67: 1057 | D67: 105 | E67: 10 | F67: 1 | G67: 941 | H67: 3333 | I67: 2392
B68: kísérlet59 | C68: 1058 | D68: 105 | E68: 10 | F68: 1 | G68: 942 | H68: 3333 | I68: 2391
B69: kísérlet60 | C69: 1059 | D69: 105 | E69: 10 | F69: 1 | G69: 943 | H69: 3333 | I69: 2390
B70: kísérlet61 | C70: 1060 | D70: 106 | E70: 10 | F70: 1 | G70: 943 | H70: 3333 | I70: 2390
B71: kísérlet62 | C71: 1061 | D71: 106 | E71: 10 | F71: 1 | G71: 944 | H71: 3333 | I71: 2389
B72: kísérlet63 | C72: 1062 | D72: 106 | E72: 10 | F72: 1 | G72: 945 | H72: 3333 | I72: 2388
B73: kísérlet64 | C73: 1063 | D73: 106 | E73: 10 | F73: 1 | G73: 946 | H73: 3333 | I73: 2387
B74: kísérlet65 | C74: 1064 | D74: 106 | E74: 10 | F74: 1 | G74: 947 | H74: 3333 | I74: 2386
B75: kísérlet66 | C75: 1065 | D75: =INT(C75/10) -> 106 | E75: =INT(D75/10) -> 10 | F75: =INT(E75/10) -> 1 | G75: =C75-D75-E75-F75 -> 948 | H75: 3333 | I75: =ABS(H75-G75) -> 2385
B76: kísérlet67 | C76: =C75+1 -> 1066 | D76: 106 | E76: 10 | F76: 1 | G76: 949 | H76: 3333 | I76: 2384
B77: kísérlet68 | C77: 1067 | D77: 106 | E77: 10 | F77: 1 | G77: 950 | H77: 3333 | I77: 2383
B78: kísérlet69 | C78: 1068 | D78: 106 | E78: 10 | F78: 1 | G78: 951 | H78: 3333 | I78: 2382
B79: kísérlet70 | C79: 1069 | D79: 106 | E79: 10 | F79: 1 | G79: 952 | H79: 3333 | I79: 2381
B80: kísérlet71 | C80: 1070 | D80: 107 | E80: 10 | F80: 1 | G80: 952 | H80: 3333 | I80: 2381
B81: kísérlet72 | C81: 1071 | D81: 107 | E81: 10 | F81: 1 | G81: 953 | H81: 3333 | I81: 2380
B82: kísérlet73 | C82: 1072 | D82: 107 | E82: 10 | F82: 1 | G82: 954 | H82: 3333 | I82: 2379
B83: kísérlet74 | C83: 1073 | D83: 107 | E83: 10 | F83: 1 | G83: 955 | H83: 3333 | I83: 2378
B84: kísérlet75 | C84: 1074 | D84: 107 | E84: 10 | F84: 1 | G84: 956 | H84: 3333 | I84: 2377
B85: kísérlet76 | C85: 1075 | D85: 107 | E85: 10 | F85: 1 | G85: 957 | H85: 3333 | I85: 2376
B86: kísérlet77 | C86: 1076 | D86: 107 | E86: 10 | F86: 1 | G86: 958 | H86: 3333 | I86: 2375
B87: kísérlet78 | C87: 1077 | D87: 107 | E87: 10 | F87: 1 | G87: 959 | H87: 3333 | I87: 2374
B88: kísérlet79 | C88: 1078 | D88: 107 | E88: 10 | F88: 1 | G88: 960 | H88: 3333 | I88: 2373
B89: kísérlet80 | C89: 1079 | D89: 107 | E89: 10 | F89: 1 | G89: 961 | H89: 3333 | I89: 2372
B90: kísérlet81 | C90: 1080 | D90: 108 | E90: 10 | F90: 1 | G90: 961 | H90: 3333 | I90: 2372
B91: kísérlet82 | C91: 1081 | D91: 108 | E91: 10 | F91: 1 | G91: 962 | H91: 3333 | I91: 2371
B92: kísérlet83 | C92: 1082 | D92: 108 | E92: 10 | F92: 1 | G92: 963 | H92: 3333 | I92: 2370
B93: kísérlet84 | C93: 1083 | D93: 108 | E93: 10 | F93: 1 | G93: 964 | H93: 3333 | I93: 2369
B94: kísérlet85 | C94: 1084 | D94: 108 | E94: 10 | F94: 1 | G94: 965 | H94: 3333 | I94: 2368
B95: kísérlet86 | C95: 1085 | D95: 108 | E95: 10 | F95: 1 | G95: 966 | H95: 3333 | I95: 2367
B96: kísérlet87 | C96: 1086 | D96: 108 | E96: 10 | F96: 1 | G96: 967 | H96: 3333 | I96: 2366
B97: kísérlet88 | C97: 1087 | D97: 108 | E97: 10 | F97: 1 | G97: 968 | H97: 3333 | I97: 2365
B98: kísérlet89 | C98: 1088 | D98: 108 | E98: 10 | F98: 1 | G98: 969 | H98: 3333 | I98: 2364
B99: kísérlet90 | C99: 1089 | D99: 108 | E99: 10 | F99: 1 | G99: 970 | H99: 3333 | I99: 2363
B100: kísérlet91 | C100: 1090 | D100: 109 | E100: 10 | F100: 1 | G100: 970 | H100: 3333 | I100: 2363
B101: kísérlet92 | C101: 1091 | D101: 109 | E101: 10 | F101: 1 | G101: 971 | H101: 3333 | I101: 2362
B102: kísérlet93 | C102: 1092 | D102: 109 | E102: 10 | F102: 1 | G102: 972 | H102: 3333 | I102: 2361
B103: kísérlet94 | C103: 1093 | D103: 109 | E103: 10 | F103: 1 | G103: 973 | H103: 3333 | I103: 2360
B104: kísérlet95 | C104: 1094 | D104: 109 | E104: 10 | F104: 1 | G104: 974 | H104: 3333 | I104: 2359
B105: kísérlet96 | C105: 1095 | D105: 109 | E105: 10 | F105: 1 | G105: 975 | H105: 3333 | I105: 2358
B106: kísérlet97 | C106: 1096 | D106: 109 | E106: 10 | F106: 1 | G106: 976 | H106: 3333 | I106: 2357
B107: kísérlet98 | C107: 1097 | D107: 109 | E107: 10 | F107: 1 | G107: 977 | H107: 3333 | I107: 2356
B108: kísérlet99 | C108: 1098 | D108: 109 | E108: 10 | F108: 1 | G108: 978 | H108: 3333 | I108: 2355
B109: kísérlet100 | C109: 1099 | D109: 109 | E109: 10 | F109: 1 | G109: 979 | H109: 3333 | I109: 2354
B110: kísérlet101 | C110: 1100 | D110: 110 | E110: 11 | F110: 1 | G110: 978 | H110: 3333 | I110: 2355
B111: kísérlet102 | C111: 1101 | D111: 110 | E111: 11 | F111: 1 | G111: 979 | H111: 3333 | I111: 2354
B112: kísérlet103 | C112: 1102 | D112: 110 | E112: 11 | F112: 1 | G112: 980 | H112: 3333 | I112: 2353
B113: kísérlet104 | C113: 1103 | D113: 110 | E113: 11 | F113: 1 | G113: 981 | H113: 3333 | I113: 2352
B114: kísérlet105 | C114: 1104 | D114: 110 | E114: 11 | F114: 1 | G114: 982 | H114: 3333 | I114: 2351
B115: kísérlet106 | C115: 1105 | D115: 110 | E115: 11 | F115: 1 | G115: 983 | H115: 3333 | I115: 2350
B116: kísérlet107 | C116: 1106 | D116: 110 | E116: 11 | F116: 1 | G116: 984 | H116: 3333 | I116: 2349
B117: kísérlet108 | C117: 1107 | D117: 110 | E117: 11 | F117: 1 | G117: 985 | H117: 3333 | I117: 2348
B118: kísérlet109 | C118: 1108 | D118: 110 | E118: 11 | F118: 1 | G118: 986 | H118: 3333 | I118: 2347
B119: kísérlet110 | C119: 1109 | D119: 110 | E119: 11 | F119: 1 | G119: 987 | H119: 3333 | I119: 2346
B120: kísérlet111 | C120: 1110 | D120: 111 | E120: 11 | F120: 1 | G120: 987 | H120: 3333 | I120: 2346
B121: kísérlet112 | C121: 1111 | D121: 111 | E121: 11 | F121: 1 | G121: 988 | H121: 3333 | I121: 2345
B122: kísérlet113 | C122: 1112 | D122: 111 | E122: 11 | F122: 1 | G122: 989 | H122: 3333 | I122: 2344
B123: kísérlet114 | C123: 1113 | D123: 111 | E123: 11 | F123: 1 | G123: 990 | H123: 3333 | I123: 2343
B124: kísérlet115 | C124: 1114 | D124: 111 | E124: 11 | F124: 1 | G124: 991 | H124: 3333 | I124: 2342
B125: kísérlet116 | C125: 1115 | D125: 111 | E125: 11 | F125: 1 | G125: 992 | H125: 3333 | I125: 2341
B126: kísérlet117 | C126: 1116 | D126: 111 | E126: 11 | F126: 1 | G126: 993 | H126: 3333 | I126: 2340
B127: kísérlet118 | C127: 1117 | D127: 111 | E127: 11 | F127: 1 | G127: 994 | H127: 3333 | I127: 2339
B128: kísérlet119 | C128: 1118 | D128: 111 | E128: 11 | F128: 1 | G128: 995 | H128: 3333 | I128: 2338
B129: kísérlet120 | C129: 1119 | D129: 111 | E129: 11 | F129: 1 | G129: 996 | H129: 3333 | I129: 2337
B130: kísérlet121 | C130: 1120 | D130: 112 | E130: 11 | F130: 1 | G130: 996 | H130: 3333 | I130: 2337
B131: kísérlet122 | C131: 1121 | D131: 112 | E131: 11 | F131: 1 | G131: 997 | H131: 3333 | I131: 2336
B132: kísérlet123 | C132: 1122 | D132: 112 | E132: 11 | F132: 1 | G132: 998 | H132: 3333 | I132: 2335
B133: kísérlet124 | C133: 1123 | D133: 112 | E133: 11 | F133: 1 | G133: 999 | H133: 3333 | I133: 2334
B134: kísérlet125 | C134: 1124 | D134: 112 | E134: 11 | F134: 1 | G134: 1000 | H134: 3333 | I134: 2333
B135: kísérlet126 | C135: 1125 | D135: 112 | E135: 11 | F135: 1 | G135: 1001 | H135: 3333 | I135: 2332
B136: kísérlet127 | C136: 1126 | D136: 112 | E136: 11 | F136: 1 | G136: 1002 | H136: 3333 | I136: 2331
B137: kísérlet128 | C137: 1127 | D137: 112 | E137: 11 | F137: 1 | G137: 1003 | H137: 3333 | I137: 2330
B138: kísérlet129 | C138: 1128 | D138: 112 | E138: 11 | F138: 1 | G138: 1004 | H138: 3333 | I138: 2329
B139: kísérlet130 | C139: 1129 | D139: =INT(C139/10) -> 112 | E139: =INT(D139/10) -> 11 | F139: =INT(E139/10) -> 1 | G139: =C139-D139-E139-F139 -> 1005 | H139: 3333 | I139: =ABS(H139-G139) -> 2328
B140: kísérlet131 | C140: =C139+1 -> 1130 | D140: 113 | E140: 11 | F140: 1 | G140: 1005 | H140: 3333 | I140: 2328
B141: kísérlet132 | C141: 1131 | D141: 113 | E141: 11 | F141: 1 | G141: 1006 | H141: 3333 | I141: 2327
B142: kísérlet133 | C142: 1132 | D142: 113 | E142: 11 | F142: 1 | G142: 1007 | H142: 3333 | I142: 2326
B143: kísérlet134 | C143: 1133 | D143: 113 | E143: 11 | F143: 1 | G143: 1008 | H143: 3333 | I143: 2325
B144: kísérlet135 | C144: 1134 | D144: 113 | E144: 11 | F144: 1 | G144: 1009 | H144: 3333 | I144: 2324
B145: kísérlet136 | C145: 1135 | D145: 113 | E145: 11 | F145: 1 | G145: 1010 | H145: 3333 | I145: 2323
B146: kísérlet137 | C146: 1136 | D146: 113 | E146: 11 | F146: 1 | G146: 1011 | H146: 3333 | I146: 2322
B147: kísérlet138 | C147: 1137 | D147: 113 | E147: 11 | F147: 1 | G147: 1012 | H147: 3333 | I147: 2321
B148: kísérlet139 | C148: 1138 | D148: 113 | E148: 11 | F148: 1 | G148: 1013 | H148: 3333 | I148: 2320
B149: kísérlet140 | C149: 1139 | D149: 113 | E149: 11 | F149: 1 | G149: 1014 | H149: 3333 | I149: 2319
B150: kísérlet141 | C150: 1140 | D150: 114 | E150: 11 | F150: 1 | G150: 1014 | H150: 3333 | I150: 2319
B151: kísérlet142 | C151: 1141 | D151: 114 | E151: 11 | F151: 1 | G151: 1015 | H151: 3333 | I151: 2318
B152: kísérlet143 | C152: 1142 | D152: 114 | E152: 11 | F152: 1 | G152: 1016 | H152: 3333 | I152: 2317
B153: kísérlet144 | C153: 1143 | D153: 114 | E153: 11 | F153: 1 | G153: 1017 | H153: 3333 | I153: 2316
B154: kísérlet145 | C154: 1144 | D154: 114 | E154: 11 | F154: 1 | G154: 1018 | H154: 3333 | I154: 2315
B155: kísérlet146 | C155: 1145 | D155: 114 | E155: 11 | F155: 1 | G155: 1019 | H155: 3333 | I155: 2314
B156: kísérlet147 | C156: 1146 | D156: 114 | E156: 11 | F156: 1 | G156: 1020 | H156: 3333 | I156: 2313
B157: kísérlet148 | C157: 1147 | D157: 114 | E157: 11 | F157: 1 | G157: 1021 | H157: 3333 | I157: 2312
B158: kísérlet149 | C158: 1148 | D158: 114 | E158: 11 | F158: 1 | G158: 1022 | H158: 3333 | I158: 2311
B159: kísérlet150 | C159: 1149 | D159: 114 | E159: 11 | F159: 1 | G159: 1023 | H159: 3333 | I159: 2310
B160: kísérlet151 | C160: 1150 | D160: 115 | E160: 11 | F160: 1 | G160: 1023 | H160: 3333 | I160: 2310
B161: kísérlet152 | C161: 1151 | D161: 115 | E161: 11 | F161: 1 | G161: 1024 | H161: 3333 | I161: 2309
B162: kísérlet153 | C162: 1152 | D162: 115 | E162: 11 | F162: 1 | G162: 1025 | H162: 3333 | I162: 2308
B163: kísérlet154 | C163: 1153 | D163: 115 | E163: 11 | F163: 1 | G163: 1026 | H163: 3333 | I163: 2307
B164: kísérlet155 | C164: 1154 | D164: 115 | E164: 11 | F164: 1 | G164: 1027 | H164: 3333 | I164: 2306
B165: kísérlet156 | C165: 1155 | D165: 115 | E165: 11 | F165: 1 | G165: 1028 | H165: 3333 | I165: 2305
B166: kísérlet157 | C166: 1156 | D166: 115 | E166: 11 | F166: 1 | G166: 1029 | H166: 3333 | I166: 2304
B167: kísérlet158 | C167: 1157 | D167: 115 | E167: 11 | F167: 1 | G167: 1030 | H167: 3333 | I167: 2303
B168: kísérlet159 | C168: 1158 | D168: 115 | E168: 11 | F168: 1 | G168: 1031 | H168: 3333 | I168: 2302
B169: kísérlet160 | C169: 1159 | D169: 115 | E169: 11 | F169: 1 | G169: 1032 | H169: 3333 | I169: 2301
B170: kísérlet161 | C170: 1160 | D170: 116 | E170: 11 | F170: 1 | G170: 1032 | H170: 3333 | I170: 2301
B171: kísérlet162 | C171: 1161 | D171: 116 | E171: 11 | F171: 1 | G171: 1033 | H171: 3333 | I171: 2300
B172: kísérlet163 | C172: 1162 | D172: 116 | E172: 11 | F172: 1 | G172: 1034 | H172: 3333 | I172: 2299
B173: kísérlet164 | C173: 1163 | D173: 116 | E173: 11 | F173: 1 | G173: 1035 | H173: 3333 | I173: 2298
B174: kísérlet165 | C174: 1164 | D174: 116 | E174: 11 | F174: 1 | G174: 1036 | H174: 3333 | I174: 2297
B175: kísérlet166 | C175: 1165 | D175: 116 | E175: 11 | F175: 1 | G175: 1037 | H175: 3333 | I175: 2296
B176: kísérlet167 | C176: 1166 | D176: 116 | E176: 11 | F176: 1 | G176: 1038 | H176: 3333 | I176: 2295
B177: kísérlet168 | C177: 1167 | D177: 116 | E177: 11 | F177: 1 | G177: 1039 | H177: 3333 | I177: 2294
B178: kísérlet169 | C178: 1168 | D178: 116 | E178: 11 | F178: 1 | G178: 1040 | H178: 3333 | I178: 2293
B179: kísérlet170 | C179: 1169 | D179: 116 | E179: 11 | F179: 1 | G179: 1041 | H179: 3333 | I179: 2292
B180: kísérlet171 | C180: 1170 | D180: 117 | E180: 11 | F180: 1 | G180: 1041 | H180: 3333 | I180: 2292
B181: kísérlet172 | C181: 1171 | D181: 117 | E181: 11 | F181: 1 | G181: 1042 | H181: 3333 | I181: 2291
B182: kísérlet173 | C182: 1172 | D182: 117 | E182: 11 | F182: 1 | G182: 1043 | H182: 3333 | I182: 2290
B183: kísérlet174 | C183: 1173 | D183: 117 | E183: 11 | F183: 1 | G183: 1044 | H183: 3333 | I183: 2289
B184: kísérlet175 | C184: 1174 | D184: 117 | E184: 11 | F184: 1 | G184: 1045 | H184: 3333 | I184: 2288
B185: kísérlet176 | C185: 1175 | D185: 117 | E185: 11 | F185: 1 | G185: 1046 | H185: 3333 | I185: 2287
B186: kísérlet177 | C186: 1176 | D186: 117 | E186: 11 | F186: 1 | G186: 1047 | H186: 3333 | I186: 2286
B187: kísérlet178 | C187: 1177 | D187: 117 | E187: 11 | F187: 1 | G187: 1048 | H187: 3333 | I187: 2285
B188: kísérlet179 | C188: 1178 | D188: 117 | E188: 11 | F188: 1 | G188: 1049 | H188: 3333 | I188: 2284
B189: kísérlet180 | C189: 1179 | D189: 117 | E189: 11 | F189: 1 | G189: 1050 | H189: 3333 | I189: 2283
B190: kísérlet181 | C190: 1180 | D190: 118 | E190: 11 | F190: 1 | G190: 1050 | H190: 3333 | I190: 2283
B191: kísérlet182 | C191: 1181 | D191: 118 | E191: 11 | F191: 1 | G191: 1051 | H191: 3333 | I191: 2282
B192: kísérlet183 | C192: 1182 | D192: 118 | E192: 11 | F192: 1 | G192: 1052 | H192: 3333 | I192: 2281
B193: kísérlet184 | C193: 1183 | D193: 118 | E193: 11 | F193: 1 | G193: 1053 | H193: 3333 | I193: 2280
B194: kísérlet185 | C194: 1184 | D194: 118 | E194: 11 | F194: 1 | G194: 1054 | H194: 3333 | I194: 2279
B195: kísérlet186 | C195: 1185 | D195: 118 | E195: 11 | F195: 1 | G195: 1055 | H195: 3333 | I195: 2278
B196: kísérlet187 | C196: 1186 | D196: 118 | E196: 11 | F196: 1 | G196: 1056 | H196: 3333 | I196: 2277
B197: kísérlet188 | C197: 1187 | D197: 118 | E197: 11 | F197: 1 | G197: 1057 | H197: 3333 | I197: 2276
B198: kísérlet189 | C198: 1188 | D198: 118 | E198: 11 | F198: 1 | G198: 1058 | H198: 3333 | I198: 2275
B199: kísérlet190 | C199: 1189 | D199: 118 | E199: 11 | F199: 1 | G199: 1059 | H199: 3333 | I199: 2274
B200: kísérlet191 | C200: 1190 | D200: 119 | E200: 11 | F200: 1 | G200: 1059 | H200: 3333 | I200: 2274
B201: kísérlet192 | C201: 1191 | D201: 119 | E201: 11 | F201: 1 | G201: 1060 | H201: 3333 | I201: 2273
B202: kísérlet193 | C202: 1192 | D202: 119 | E202: 11 | F202: 1 | G202: 1061 | H202: 3333 | I202: 2272
B203: kísérlet194 | C203: 1193 | D203: =INT(C203/10) -> 119 | E203: =INT(D203/10) -> 11 | F203: =INT(E203/10) -> 1 | G203: =C203-D203-E203-F203 -> 1062 | H203: 3333 | I203: =ABS(H203-G203) -> 2271
B204: kísérlet195 | C204: =C203+1 -> 1194 | D204: 119 | E204: 11 | F204: 1 | G204: 1063 | H204: 3333 | I204: 2270
B205: kísérlet196 | C205: 1195 | D205: 119 | E205: 11 | F205: 1 | G205: 1064 | H205: 3333 | I205: 2269
... 8804 more rows

Sheet MCM
D1: 1111 | E1: 1110 | F1: 1100 | G1: 1000 | H1: 111 | I1: 0111 | J1: 0 | K1: 0000
D4: 4 | E4: 3 | F4: 2 | G4: 1 | H4: k | I4: e | J4: HIBA
C5: magyarból Excel-be | D5: =RANDBETWEEN(1000,9999) -> 5907 | E5: =INT(D5/10) -> 590 | F5: =INT(E5/10) -> 59 | G5: 5 | H5: =D5-E5-F5-G5 -> 5253 | I5: 3333 | J5: =ABS(I5-H5) -> 1920
C7: id | D7: =D4 -> 4 | E7: =E4 -> 3 | F7: 2 | G7: 1 | H7: k | I7: e | J7: HIBA
D8: =RANDBETWEEN(1000,9999) -> 1093 | E8: =INT(D8/10) -> 109 | F8: =INT(E8/10) -> 10 | G8: =INT(F8/10) -> 1 | H8: =D8-E8-F8-G8 -> 973 | I8: 3333 | J8: =ABS(I8-H8) -> 2360
D9: 8880 | E9: 888 | F9: 88 | G9: 8 | H9: 7896 | I9: 3333 | J9: 4563
D10: 2854 | E10: 285 | F10: 28 | G10: 2 | H10: 2539 | I10: 3333 | J10: 794
D11: 8135 | E11: 813 | F11: 81 | G11: 8 | H11: 7233 | I11: 3333 | J11: 3900
D12: 8165 | E12: 816 | F12: 81 | G12: 8 | H12: 7260 | I12: 3333 | J12: 3927
D13: 3057 | E13: 305 | F13: 30 | G13: 3 | H13: 2719 | I13: 3333 | J13: 614
D14: 2533 | E14: 253 | F14: 25 | G14: 2 | H14: 2253 | I14: 3333 | J14: 1080
D15: 2419 | E15: 241 | F15: 24 | G15: 2 | H15: 2152 | I15: 3333 | J15: 1181
D16: 1675 | E16: 167 | F16: 16 | G16: 1 | H16: 1491 | I16: 3333 | J16: 1842
D17: 5782 | E17: 578 | F17: 57 | G17: 5 | H17: 5142 | I17: 3333 | J17: 1809

Sheet MCM (2)
D1: 1111 | E1: 1110 | F1: 1100 | G1: 1000 | H1: 111 | I1: 0111 | J1: 0 | K1: 0000
D4: 4 | E4: 3 | F4: 2 | G4: 1 | H4: k | I4: e | J4: HIBA
C5: magyarból Excel-be | D5: =RANDBETWEEN(1000,9999) -> 8548 | E5: =INT(D5/10) -> 854 | F5: =INT(E5/10) -> 85 | G5: 8 | H5: =D5-E5-F5-G5 -> 7601 | I5: 3333 | J5: =ABS(I5-H5) -> 4268
C7: id | D7: =D4 -> 4 | E7: =E4 -> 3 | F7: 2 | G7: 1 | H7: k | I7: e | J7: HIBA | K7: seged
D8: =RANDBETWEEN(1000,9999) -> 5758 | E8: =INT(D8/10) -> 575 | F8: 57 | G8: 5 | H8: =D8-E8-F8-G8 -> 5121 | I8: 3333 | J8: =ABS(I8-H8) -> 1788 | K8: =D8-J8 -> 3970
D9: =RANDBETWEEN(K8,D8) -> 4812 | E9: 481 | F9: 48 | G9: 4 | H9: 4279 | I9: 3333 | J9: 946 | K9: =D9-J9 -> 3866
D10: =RANDBETWEEN(K9,D9) -> 4524 | E10: =INT(D10/10) -> 452 | F10: 45 | G10: 4 | H10: =D10-E10-F10-G10 -> 4023 | I10: 3333 | J10: =ABS(I10-H10) -> 690 | K10: 3834
D11: 4361 | E11: =INT(D11/10) -> 436 | F11: 43 | G11: 4 | H11: 3878 | I11: 3333 | J11: 545 | K11: 3816
D12: 3991 | E12: =INT(D12/10) -> 399 | F12: 39 | G12: 3 | H12: 3550 | I12: 3333 | J12: 217 | K12: 3774
D13: 3888 | E13: =INT(D13/10) -> 388 | F13: 38 | G13: 3 | H13: 3459 | I13: 3333 | J13: 126 | K13: 3762
D14: =RANDBETWEEN(K13,D13) -> 3787 | E14: =INT(D14/10) -> 378 | F14: 37 | G14: 3 | H14: =D14-E14-F14-G14 -> 3369 | I14: 3333 | J14: =ABS(I14-H14) -> 36 | K14: 3751
D15: 3768 | E15: =INT(D15/10) -> 376 | F15: 37 | G15: 3 | H15: 3352 | I15: 3333 | J15: 19 | K15: 3749
D16: 3762 | E16: =INT(D16/10) -> 376 | F16: 37 | G16: 3 | H16: 3346 | I16: 3333 | J16: 13 | K16: 3749
D17: 3754 | E17: =INT(D17/10) -> 375 | F17: 37 | G17: 3 | H17: 3339 | I17: 3333 | J17: 6 | K17: 3748

Sheet string
D3: 4 | E3: 3 | F3: 2 | G3: 1 | H3: k | I3: e | J3: HIBA
C4: magyarból Excel-be | D4: =RANDBETWEEN(1000,9999) -> 4896 | E4: =INT(D4/10) -> 489 | F4: =INT(E4/10) -> 48 | G4: 4 | H4: =D4-E4-F4-G4 -> 4355 | I4: 3333 | J4: =ABS(I4-H4) -> 1022
H6: =D3 -> 4 | I6: =E3 -> 3 | J6: 2 | K6: 1
D7: a | E7: b | F7: c | G7: d | H7: abcd | I7: abc | J7: ab | K7: a
D8: =RANDBETWEEN(1,9) -> 7 | E8: =RANDBETWEEN(0,9) -> 6 | F8: 3 | G8: 7 | H8: =VALUE(D8&E8&F8&G8) -> 7637 | I8: =VALUE(D8&E8&F8) -> 763 | J8: =VALUE(D8&E8) -> 76 | K8: =D8 -> 7
D9: 1000 | E9: 100 | F9: 10 | G9: 1 | H9: =D8*D9+E8*E9+F8*F9+G8*G9 -> 7637
H10: =VALUE(LEFT($H$8,H6)) -> 7637 | I10: =VALUE(LEFT($H$8,I6)) -> 763 | J10: =VALUE(LEFT($H$8,J6)) -> 76 | K10: 7
H12: ABCD | I12: DCB | J12: DC | K12: D | L12: K | M12: C | N12: H
H13: =H8 -> 7637 | I13: =VALUE($G$8&$F$8&$E$8) -> 736 | J13: =VALUE(LEFT(I13,2)) -> 73 | K13: =VALUE(LEFT(I14,1)) -> 7 | L13: =H13-I13-J13-K13 -> 6821 | M13: 3333 | N13: =ABS(M13-L13) -> 3488
H14: =H13-N13 -> 4149 | I14: =VALUE($G$8&$F$8&$E$8) -> 736 | J14: =VALUE(LEFT(I14,2)) -> 73 | K14: =VALUE(LEFT(I14,1)) -> 7 | L14: =H14-I14-J14-K14 -> 3333 | M14: 3333 | N14: =ABS(M14-L14) -> 0
H15: =H14-N14 -> 4149 | I15: =VALUE($G$8&$F$8&$E$8) -> 736 | J15: =VALUE(LEFT(I15,2)) -> 73 | K15: =VALUE(LEFT(I15,1)) -> 7 | L15: =H15-I15-J15-K15 -> 3333 | M15: 3333 | N15: =ABS(M15-L15) -> 0
H16: 4149 | I16: 736 | J16: 73 | K16: 7 | L16: 3333 | M16: 3333 | N16: 0
H17: 4149 | I17: 736 | J17: 73 | K17: 7 | L17: 3333 | M17: 3333 | N17: 0
H18: 4149 | I18: 736 | J18: 73 | K18: 7 | L18: 3333 | M18: 3333 | N18: 0
